[Event "Presidents Day GM-Norm 2024"]
[Site "Santa Clara"]
[Date "2024.02.18"]
[Round "4.3"]
[White "Wang, Isaac"]
[Black "Jiang, Lucas"]
[Result "1/2-1/2"]
[ECO "C45"]
[WhiteElo "2316"]
[BlackElo "2258"]
[Annotator "TA"]
[PlyCount "157"]
[EventDate "2024.02.13"]
[EventType "tourn"]
[EventCountry "USA"]
[SourceTitle "playchess.com"]
[Source "ChessBase"]
[SourceQuality "1"]
[TimeControl "5400+30"]

{[%evp 12,157,0,0,0,0,0,0,0,0,0,-13,0,-7,-10,-14,-14,-32,-44,-42,-34,-25,-35,-31,-48,-38,-28,-37,-38,-29,-30,-31,-24,-41,-50,-112,-69,-90,-99,-114,-87,-112,-77,-120,-118,-164,-164,-154,-134,-161,-161,-161,-161,-279,-267,-268,-263,-382,-382,-361,-336,-357,-357,-415,-327,-351,-349,-448,-429,-558,-557,-612,-327,-327,-337,-349,-356,-283,-220,-415,-415,-415,-415,-415,-415,-415,-324,-415,-308,-415,-415,-1061,-317,-317,-262,-317,-286,-312,-71,-222,-202,-302,-222,-290,0,-316,-311,-12839,-373,-309,0,-29943,-29937,-29945,-29944,-29945,-29946,-29964,-29961,-29961,-29961,-29966,-29965,-29968,-29967,-29971,-29971,-29960,-29971,-29972,-29972,-29969,-29973,-29974,-29973,-29971,-29966,-29946,-29954,-29946,-29959,-12791,-451,-440,-14,-21,-8,-8]} 1. e4 {[%emt 0:03:51]} e5 {[%emt 0:00:05]} 2. Nf3 {[%emt 0:00:07]} Nc6 {[%emt 0:00:06]} 3. d4 {[%emt 0:00:04]} exd4 {[%emt 0:00:05]} 4. Nxd4 {[%emt 0:00:04]} Bc5 {[%emt 0:03:26]} 5. Nb3 {[%emt 0:00:15]} Bb6 {[%emt 0:00:05]} 6. Nc3 {[%emt 0:00:31]} Nf6 {[%emt 0:00:09]} 7. Bg5 {[%emt 0:00:17]} O-O {[%emt 0:00:18]} 8. Qe2 {[%emt 0:00:39]} h6 {[%emt 0:05:06]} 9. Bh4 {[%emt 0:00:35]} a5 {[%emt 0:01:28]} 10. a4 $1 {[%emt 0:02:49]} Nd4 {[%emt 0:01:34]} 11. Nxd4 {[%emt 0:11:04]} Bxd4 {[%emt 0:00:06]} 12. O-O-O {[%emt 0:06:08]} Bxc3 {[%emt 0:02:19]} 13. bxc3 {[%emt 0:00:05] [#] Und e5 würde nun gewinnen.} Qe7 {[%emt 0:01:40][%cal Oa8a6] und nun wäre ...Ra6! stark für Schwarz.} 14. e5 {[%emt 0:06:41]} (14. Qf3 {vereinfacht} Qxe4 15. Bxf6 Qxf3 16. gxf3 gxf6 17. Rd4) 14... Qa3+ {[%emt 0:12:00]} 15. Kd2 $1 {[%emt 0:07:13]} (15. Kb1 d6 (15... Qxa4 $2 16. Rd4 $18) 16. f4 (16. exf6 $2 Be6 $19) 16... Bg4 $19) 15... Qxa4 {[%emt 0:09:00]} 16. Bxf6 {[%emt 0:02:35][%cal Oe2e3]} Qf4+ {[%emt 0:08:42]} (16... gxf6 17. Qe3 Qh4 18. exf6 Qxf6 19. Qg3+ Kh8 20. Qxc7 $17) 17. Qe3 {[%emt 0:01:22]} Qxe3+ {[%emt 0:00:11]} 18. fxe3 {[%emt 0:00:38]} gxf6 {[%emt 0:00:07]} 19. exf6 {[%emt 0:00:27]} Re8 {[%emt 0:07:05]} 20. Bd3 {[%emt 0:03:10]} d6 {[%emt 0:05:43]} 21. g4 {[%emt 0:01:18]} Re5 $36 {[%emt 0:02:21][%cal Oa5a4][%mdl 2048] Schwarz hat Druck.} (21... Bxg4 $2 22. Rdg1 Kh8 (22... h5 $2 23. h3 $18) 23. Rxg4 $18) 22. Rdf1 {[%emt 0:06:37]} a4 {[%emt 0:02:55][%cal Oa4a3]} (22... Bxg4 $2 23. Rhg1 $18) 23. Rf4 {[%emt 0:04:20]} (23. Rf3 $15) 23... Bd7 {[%emt 0:01:54]} 24. h4 {[%emt 0:01:47][%cal Og4g5]} a3 {[%emt 0:02:52]} 25. c4 {[%emt 0:03:52]} Be6 {[%emt 0:04:26]} 26. Ra1 {[%emt 0:04:12]} Raa5 {[%emt 0:05:48]} 27. Rd4 {[%emt 0:03:33]} Kf8 {[%emt 0:02:02]} 28. Be2 {[%emt 0:01:41]} (28. Re4 $17) 28... a2 $19 {[%emt 0:03:23]} 29. Bf3 {[%emt 0:05:26]} Ra7 {[%emt 0:00:42]} 30. Be2 {[%emt 0:04:24]} Ke8 {[%emt 0:00:18]} 31. Bf3 {[%emt 0:01:34]} Kd7 {[%emt 0:00:50]} 32. c3 {[%emt 0:07:43]} (32. Be2 $142) 32... b5 {[%emt 0:10:22]} 33. cxb5 {[%emt 0:01:13]} Rxb5 {[%emt 0:00:05]} 34. Rb4 {[%emt 0:02:40]} (34. Kc2 $142) 34... Rxb4 {[%emt 0:01:24]} 35. cxb4 {[%emt 0:00:01][%mdl 4096] Endspiel. KRB-KRB} c5 {[%emt 0:01:18]} 36. bxc5 {[%emt 0:00:39]} dxc5 {[%emt 0:00:07]} 37. g5 {[%emt 0:00:59]} hxg5 {[%emt 0:00:06]} 38. hxg5 {[%emt 0:00:02]} Kd6 {[%emt 0:00:27]} 39. Be4 {[%emt 0:01:43]} Ke5 {[%emt 0:00:06]} 40. Bc2 {[%emt 0:00:03]} Ra3 {[%emt 0:00:43]} 41. Bd3 {[%emt 0:02:11]} Ra4 {[%emt 0:01:34]} 42. g6 {[%emt 0:01:17]} Kxf6 {[%emt 0:00:25]} 43. gxf7 {[%emt 0:00:05]} Kxf7 {[%emt 0:00:14]} 44. Bc2 {[%emt 0:01:32] Gegen c4 gerichtet.} Ra3 {[%emt 0:00:08] Zielt auf ...c4 ab.} 45. e4 $2 {[%emt 0:00:06]} (45. Kc1) 45... Kf6 {[%emt 0:05:14]} 46. Kc1 {[%emt 0:00:04]} Ke5 {[%emt 0:00:20]} 47. Kb2 {[%emt 0:00:04]} Rf3 {[%emt 0:00:51]} 48. Rd1 {[%emt 0:00:20]} Rg3 {[%emt 0:01:31]} 49. Ka1 {[%emt 0:01:11]} Ra3 {[%emt 0:02:31]} 50. Kb2 {[%emt 0:00:13]} Ra7 {[%emt 0:00:10] Droht ...c4 und aus.} 51. Ka1 {[%emt 0:00:47]} (51. Ra1 $142) 51... Rb7 $2 {[%emt 0:01:03]} (51... c4 {...c3 wäre nun fies.} 52. Rg1 c3 53. Rg5+ Kd4) 52. Rd8 {[%emt 0:00:42]} Rb4 {[%emt 0:00:32]} 53. Rd1 {[%emt 0:00:52]} Rb6 {[%emt 0:00:28]} 54. Rd8 {[%emt 0:00:25]} Kf4 $2 {[%emt 0:00:33]} (54... Ra6 $19 {ist viel giftiger. Droht stark ...c4.} 55. Rd3 Ra8 (55... Kxe4 $2 56. Ra3+ Kf4 57. Rxa6 $18)) 55. Rd3 $2 {[%emt 0:02:10]} (55. Rf8+ $17 {ist der einzige Weg für Weiss..} Ke5 56. Rf1) 55... Ra6 {[%emt 0:00:29][%cal Oc5c4]} (55... Kxe4 $2 56. Rd6+ Ke3 57. Rxb6 $18) 56. Rd1 {[%emt 0:01:33]} (56. e5 {ist wohl besser.} Kxe5 57. Re3+ Kd6 58. Rd3+ Kc6 59. Re3) 56... Ra3 {[%emt 0:00:32]} 57. Kb2 {[%emt 0:00:30]} Ra6 {[%emt 0:00:05]} 58. Ka1 $1 {[%emt 0:00:29]} c4 {[%emt 0:00:32]} 59. Kb2 $2 {[%emt 0:00:51]} (59. Rf1+ Ke5 60. Rf3) 59... Ke3 $2 {[%emt 0:00:47]} (59... c3+ 60. Ka1 Bc4) 60. Ka1 {[%emt 0:00:16]} Kf4 {[%emt 0:00:31]} (60... Bg4 $19 61. Rd8 Kf4) 61. Kb2 $1 {[%emt 0:00:24] [#]} c3+ $1 {[%emt 0:00:31][%mdl 512]} 62. Ka1 {[%emt 0:00:06]} Ke5 {[%emt 0:00:30]} 63. Rd3 {[%emt 0:00:36]} Rc6 {[%emt 0:00:31]} (63... Kxe4 $2 {geht unter.} 64. Rd6+ (64. Rxc3+ Kd4 $11) 64... Ke5 65. Rxa6 $18) 64. Rd8 {[%emt 0:00:38]} Rc7 {[%emt 0:01:04]} 65. Rd1 {[%emt 0:00:57]} Rb7 {[%emt 0:00:00]} 66. Rd3 {[%emt 0:00:32]} Rg7 {[%emt 0:00:00]} (66... Kxe4 67. Rd7+ (67. Rxc3+ Kd4 $11) 67... Ke3 68. Rxb7 $18) 67. Rd1 {[%emt 0:00:16]} Rg2 {[%emt 0:00:14]} 68. Ba4 {[%emt 0:00:36]} Rb2 {[%emt 0:00:50]} (68... Kxe4 69. Bc6+ Ke3 70. Bxg2 $18) 69. Rc1 {[%emt 0:00:40]} Kd4 {[%emt 0:00:28]} 70. Bc2 {[%emt 0:00:49]} Kc5 {[%emt 0:00:53]} 71. e5 {[%emt 0:00:31]} Kb4 {[%emt 0:00:18]} 72. Bd3 {[%emt 0:00:24]} Rd2 {[%emt 0:00:41]} 73. Bc2 {[%emt 0:00:17]} Rh2 {[%emt 0:00:34]} 74. Bd3 {[%emt 0:00:14]} Rg2 {[%emt 0:00:26]} 75. Be4 {[%emt 0:00:10]} Re2 {[%emt 0:00:07]} 76. Bd3 {[%emt 0:00:12]} Rb2 {[%emt 0:00:54]} (76... Re3 $142 77. Bc2 Bb3 (77... Rxe5 $2 78. Rh1 $19)) 77. Bc2 {[%emt 0:00:18]} Kc5 $2 {[%emt 0:00:13]} (77... Bb3 $19 78. Bd3 Rd2) 78. Bf5 $1 $11 {[%emt 0:01:11]} Bxf5 {[%emt 0:00:51]} 79. Rxc3+ {[%emt 0:00:04] Gewichteter Fehlerwert: Weiß=0.53/Schwarz=0.59.  Gewinn verpasst:   	---       	Schwarz=1     Fehler:       	Weiß=9     	Schwarz=2     Ungenau:       	Weiß=4     	Schwarz=3     OK:         	Weiß=11    	Schwarz=18    Bester:       	Weiß=4     	Schwarz=6     Stark:        	Weiß=5     	---        Brilliant:      	---       	Schwarz=1} 1/2-1/2

[Event "Presidents Day GM-Norm 2024"]
[Site "Santa Clara"]
[Date "2024.02.17"]
[Round "4.4"]
[White "Deng, Henry"]
[Black "Harsha Bharathakoti"]
[Result "1/2-1/2"]
[ECO "C50"]
[WhiteElo "2281"]
[BlackElo "2565"]
[Annotator "TA"]
[PlyCount "78"]
[EventDate "2024.02.13"]
[EventType "tourn"]
[EventCountry "USA"]
[SourceTitle "playchess.com"]
[Source "ChessBase"]
[SourceQuality "1"]
[TimeControl "5400+30"]

{[%evp 10,78,7,12,13,12,14,4,23,20,18,0,4,-19,2,0,12,0,16,0,24,16,25,21,24,33,46,45,40,45,50,48,53,46,58,58,72,76,63,69,102,105,127,128,125,127,130,119,117,118,108,69,100,77,84,0,0,15,0,0,0,0,18,10,8,0,15,0,17,0,19]} 1. e4 {[%emt 0:00:01]} e5 {[%emt 0:04:18]} 2. Nf3 {[%emt 0:00:16]} Nc6 {[%emt 0:00:05]} 3. Bc4 {[%emt 0:00:28]} Bc5 {[%emt 0:01:46]} 4. Nc3 {[%emt 0:00:44]} Nf6 {[%emt 0:04:16]} 5. d3 {[%emt 0:00:34]} d6 {[%emt 0:01:31]} 6. Na4 {[%emt 0:01:15]} Bb6 {[%emt 0:05:35]} 7. a3 {[%emt 0:01:26]} h6 {[%emt 0:04:13]} 8. h3 {[%emt 0:02:36]} Ne7 {[%emt 0:14:06]} 9. O-O {[%emt 0:04:56]} Ng6 {[%emt 0:02:21]} 10. c3 {[%emt 0:05:00]} O-O {[%emt 0:01:58]} 11. b4 {[%emt 0:02:14]} Nh7 {[%emt 0:10:22]} 12. Re1 {[%emt 0:07:18]} Bd7 {[%emt 0:06:15]} 13. Nxb6 {[%emt 0:03:45]} axb6 {[%emt 0:00:03]} 14. Bb3 {[%emt 0:01:02]} Qf6 {[%emt 0:02:30]} 15. a4 {[%emt 0:07:36]} Be6 {[%emt 0:04:57]} 16. Be3 {[%emt 0:03:02]} Rfd8 {[%emt 0:06:19]} 17. d4 {[%emt 0:06:59][%cal Bd3d4,Bd4d5][%mdl 32]} Qe7 {[%emt 0:09:24]} 18. Bxe6 {[%emt 0:05:08]} Qxe6 {[%emt 0:00:03]} 19. Qc2 {[%emt 0:02:31]} Nf6 {[%emt 0:00:56]} 20. d5 {[%emt 0:01:14]} Qe8 {[%emt 0:06:44]} 21. c4 {[%emt 0:03:13]} Ra6 {[%emt 0:00:05]} 22. Ra2 {[%emt 0:01:03]} Nd7 {[%emt 0:01:06]} 23. Rea1 {[%emt 0:02:08]} Ne7 {[%emt 0:02:32]} 24. a5 {[%emt 0:02:27]} Rda8 {[%emt 0:03:12]} 25. Nd2 {[%emt 0:01:54]} Rc8 {[%emt 0:03:54]} 26. axb6 {[%emt 0:00:56]} Rxa2 {[%emt 0:00:13]} 27. Rxa2 {[%emt 0:00:27] [#] bxc7 is the strong threat.} cxb6 {[%emt 0:00:04]} 28. Qa4 {[%emt 0:01:06]} Qd8 {[%emt 0:00:47]} 29. Qb5 {[%emt 0:02:23]} Qc7 {[%emt 0:00:06]} 30. Ra1 {[%emt 0:02:50]} Kh7 {[%emt 0:01:37]} 31. Nb3 {[%emt 0:01:49][%cal Oc4c5] White is much more active.} f5 {[%emt 0:00:19]} 32. exf5 {[%emt 0:04:10]} ({Better is} 32. Ra7 $16) 32... Nxf5 $11 {[%emt 0:00:05] The position is equal.} 33. Nd2 {[%emt 0:01:05]} Nxe3 {[%emt 0:00:39]} 34. fxe3 {[%emt 0:00:14]} Nf6 {[%emt 0:00:20]} 35. Qa4 {[%emt 0:01:33]} Kh8 {[%emt 0:01:19]} 36. Rf1 {[%emt 0:01:18]} Qd8 {[%emt 0:00:29]} 37. Ra1 {[%emt 0:01:07]} Qc7 {[%emt 0:00:20]} 38. Rf1 {[%emt 0:02:29]} Qd8 {[%emt 0:00:05]} 39. Ra1 {[%emt 0:00:01]} Qc7 {[%emt 0:02:10] Weighted Error Value: White=0.10 (very precise) /Black=0.08 (flawless) .  Mistake:       	White=1     	---        Inaccurate:     	White=1     	Black=2      OK:         	White=10    	Black=14     Best:        	White=1     	---} 1/2-1/2

[Event "Presidents Day GM-Norm 2024"]
[Site "Santa Clara"]
[Date "2024.02.17"]
[Round "4.5"]
[White "Stearman, Josiah"]
[Black "Budisavljevic, Luka"]
[Result "1/2-1/2"]
[ECO "D14"]
[WhiteElo "2455"]
[BlackElo "2475"]
[Annotator "TA"]
[PlyCount "42"]
[EventDate "2024.02.13"]
[EventType "tourn"]
[EventCountry "USA"]
[SourceTitle "playchess.com"]
[Source "ChessBase"]
[SourceQuality "1"]
[TimeControl "5400+30"]

{[%evp 25,42,0,9,0,0,0,10,0,0,0,0,0,0,0,0,0,0,0,0]} 1. c4 {[%emt 0:03:23]} c6 {[%emt 0:00:22]} 2. d4 {[%emt 0:00:03]} d5 {[%emt 0:00:07]} 3. cxd5 {[%emt 0:00:09]} cxd5 {[%emt 0:00:06]} 4. Nf3 {[%emt 0:00:06]} Nc6 {[%emt 0:00:08]} 5. Nc3 {[%emt 0:00:06]} Nf6 {[%emt 0:00:06]} 6. Bf4 {[%emt 0:00:04]} Bf5 {[%emt 0:00:09]} 7. e3 {[%emt 0:00:09]} e6 {[%emt 0:00:08]} 8. Bd3 {[%emt 0:00:06]} Bxd3 {[%emt 0:00:08]} 9. Qxd3 {[%emt 0:00:06]} Bd6 {[%emt 0:00:07]} 10. Bxd6 {[%emt 0:00:03]} Qxd6 {[%emt 0:00:06]} 11. O-O {[%emt 0:00:05]} O-O {[%emt 0:00:08]} 12. a3 {[%emt 0:00:03]} a6 {[%emt 0:00:09]} 13. Rfc1 {[%emt 0:00:07]} Rac8 {[%emt 0:00:13] The position is equal.} 14. h3 {[%emt 0:00:08]} h6 {[%emt 0:00:07]} 15. Nd2 {[%emt 0:00:15]} Ne7 {[%emt 0:00:15]} 16. Ne2 {[%emt 0:00:14]} Rxc1+ {[%emt 0:00:19]} 17. Rxc1 {[%emt 0:00:04]} Rc8 {[%emt 0:00:10]} 18. Rxc8+ {[%emt 0:00:04]} Nxc8 {[%emt 0:00:06]} 19. Qc2 {[%emt 0:00:06]} Ne7 {[%emt 0:00:09]} 20. Nf4 {[%emt 0:00:16]} Qc6 {[%emt 0:00:09]} 21. Qxc6 {[%emt 0:00:06]} Nxc6 {[%emt 0:00:05] A rather calm draw.   Weighted Error Value: White=0.03 (flawless) /Black=0.03 (flawless) .  OK:         	White=3     	Black=3} 1/2-1/2

[Event "Presidents Day GM-Norm 2024"]
[Site "Santa Clara"]
[Date "2024.02.18"]
[Round "5.1"]
[White "Budisavljevic, Luka"]
[Black "Sathish, Pranav"]
[Result "1/2-1/2"]
[ECO "D13"]
[WhiteElo "2475"]
[BlackElo "2357"]
[Annotator "TA"]
[PlyCount "97"]
[EventDate "2024.02.13"]
[EventType "tourn"]
[EventCountry "USA"]
[SourceTitle "playchess.com"]
[Source "ChessBase"]
[SourceQuality "1"]
[TimeControl "5400+30"]

{[%evp 15,97,27,15,15,43,45,44,43,45,48,55,27,37,24,106,68,66,68,78,79,80,66,68,79,85,85,89,87,88,89,85,86,113,112,116,76,70,73,72,62,68,62,99,91,118,76,68,45,37,33,64,38,56,35,54,46,46,46,89,62,88,88,128,116,147,127,151,36,36,36,36,36,31,0,0,0,0,0,0,0,0,0,0,0]} 1. d4 {[%emt 0:01:43]} d5 {[%emt 0:00:13]} 2. c4 {[%emt 0:00:27]} c6 {[%emt 0:00:10]} 3. cxd5 {[%emt 0:00:20]} cxd5 {[%emt 0:00:03]} 4. Nc3 {[%emt 0:00:07]} Nf6 {[%emt 0:00:07]} 5. Bf4 {[%emt 0:00:06]} Nc6 {[%emt 0:00:10]} 6. e3 {[%emt 0:00:05]} a6 {[%emt 0:00:05]} 7. Be2 {[%emt 0:00:28]} Bf5 {[%emt 0:00:38]} 8. Nf3 {[%emt 0:00:12]} e6 {[%emt 0:00:09]} 9. Qb3 {[%emt 0:00:14]} Bb4 {[%emt 0:03:23]} 10. Ne5 {[%emt 0:02:45] [#] Nxc6 would now be deadly.} Bxc3+ {[%emt 0:00:55]} 11. bxc3 {[%emt 0:00:14] White is slightly better.} O-O {[%emt 0:02:39]} 12. Qxb7 {[%emt 0:06:14]} Qa5 {[%emt 0:00:40]} 13. O-O {[%emt 0:00:45]} (13. Nxc6 Qxc3+ 14. Kd1 Bc2+ (14... Qxa1+ 15. Kd2 Ne4+ 16. Kc2 Qc3+ 17. Kd1 Nxf2#) 15. Kc1 Ba4+ 16. Kb1 Qc2#) (13. Qxc6 $2 Rfc8 14. O-O Rxc6 15. Nxc6 Qa3 $19 (15... Qxc3 16. Ne7+ Kh8 17. Nxf5 $15)) 13... Nxe5 {[%emt 1:27:48]} 14. Bxe5 {[%emt 0:00:47] And now Qb4 would win. This pair of bishops is nice.} Ne4 {[%emt 0:00:30]} (14... Qxc3 $11 {remains equal.} 15. Rfc1 (15. Bxa6 Qa3 $11) 15... Qd2) 15. Qb4 {[%emt 1:23:33] White is more active.} Qxb4 {[%emt 0:00:00]} 16. cxb4 {[%emt 0:00:00]} Nc3 {[%emt 0:00:00]} 17. Bf3 {[%emt 0:00:00]} Bd3 {[%emt 0:00:00]} 18. Rfe1 {[%emt 0:00:00]} Rfc8 {[%emt 0:00:00]} 19. Bd6 {[%emt 0:00:00]} a5 {[%emt 0:00:00]} 20. a3 {[%emt 0:00:00]} Ra6 {[%emt 0:00:00]} 21. Bc5 {[%emt 0:00:00]} axb4 {[%emt 0:00:00]} 22. axb4 {[%emt 0:00:00]} Rca8 {[%emt 0:00:00] [#]} 23. Ra5 {[%emt 0:00:00]} f6 {[%emt 0:00:00]} ({But not} 23... Rxa5 $2 24. bxa5 Rb8 (24... Rxa5 $2 {is the wrong capture.} 25. Bb4 $18) 25. Ra1 $16) (23... Na4 24. Rd1) 24. h4 {[%emt 0:00:00]} Na2 {[%emt 0:00:00]} 25. e4 {[%emt 0:00:00]} Rxa5 {[%emt 0:00:00]} 26. bxa5 {[%emt 0:00:00]} dxe4 {[%emt 0:00:00]} 27. Bxe4 {[%emt 0:00:00]} Bxe4 {[%emt 0:00:00]} 28. Rxe4 {[%emt 0:00:00]} Rxa5 {[%emt 0:00:00]} 29. Rxe6 $16 {[%emt 0:00:00][%mdl 4096] Endgame. KRB-KRN} Nc3 {[%emt 0:00:00]} 30. Re3 {[%emt 0:00:00]} Nd5 {[%emt 0:00:00]} 31. Rb3 {[%emt 0:00:00]} Nf4 {[%emt 0:00:00]} 32. Bb6 {[%emt 0:00:00]} Rd5 {[%emt 0:00:00]} 33. g3 {[%emt 0:00:00]} Ne6 {[%emt 0:00:00]} ({Reject} 33... Ne2+ $6 34. Kg2 $16) 34. Rb4 {[%emt 0:00:00]} Rd7 {[%emt 0:00:00]} 35. Rc4 {[%emt 0:00:00]} Rd6 {[%emt 0:00:00]} 36. Bc5 {[%emt 0:00:00]} Rd5 {[%emt 0:00:00]} 37. f3 {[%emt 0:00:00]} Kf7 {[%emt 0:00:00]} 38. Kf2 {[%emt 0:00:00]} f5 {[%emt 0:00:00]} 39. Ke3 {[%emt 0:00:00]} Kf6 {[%emt 0:00:00]} 40. Bb4 {[%emt 0:00:00]} h6 {[%emt 0:00:00]} 41. Rc6 {[%emt 0:00:00]} ({White should play} 41. g4 $16) 41... f4+ $1 $14 {[%emt 0:00:00]} 42. gxf4 {[%emt 0:00:00] aiming for Rd6.} Kf5 $1 {[%emt 0:00:00]} 43. Bc5 {[%emt 0:00:00]} Nxf4 {[%emt 0:00:00]} 44. Rc8 {[%emt 0:00:00] Rf8+ is the strong threat.} Ng2+ {[%emt 0:00:00] The position is equal.} 45. Kd3 {[%emt 0:00:00] Black must now prevent Rf8+.} Nxh4 {[%emt 0:00:00]} 46. Kc4 {[%emt 0:00:00]} Rd7 {[%emt 0:00:00]} 47. Rf8+ {[%emt 0:00:00]} Kg6 {[%emt 0:00:00]} 48. Rf4 {[%emt 0:01:24]} Kg5 {[%emt 0:00:00]} 49. Rg4+ {[%emt 0:01:37] Weighted Error Value: White=0.16 (very precise) /Black=0.11 (very precise) .  Mistake:       	White=1     	Black=1      Inaccurate:     	White=7     	Black=7      OK:         	White=15    	Black=17     Best:        	White=2     	Black=3      Strong:       	---       	Black=2} 1/2-1/2

[Event "Presidents Day GM-Norm 2024"]
[Site "Santa Clara"]
[Date "2024.02.18"]
[Round "5.2"]
[White "Harsha Bharathakoti"]
[Black "Stearman, Josiah"]
[Result "1-0"]
[ECO "A37"]
[WhiteElo "2565"]
[BlackElo "2455"]
[Annotator "TA"]
[PlyCount "69"]
[EventDate "2024.02.13"]
[EventType "tourn"]
[EventCountry "USA"]
[SourceTitle "playchess.com"]
[Source "ChessBase"]
[SourceQuality "1"]
[TimeControl "5400+30"]

{[%evp 19,69,0,12,11,34,0,34,33,28,16,34,23,27,18,25,20,56,45,60,55,83,75,83,66,52,41,89,98,114,123,113,102,187,188,174,172,209,195,172,135,135,128,128,128,128,128,230,230,227,219,29987,29988]} 1. c4 {[%emt 0:01:27]} c5 {[%emt 0:03:02]} 2. Nf3 {[%emt 0:01:47]} Nc6 {[%emt 0:00:53]} 3. g3 {[%emt 0:05:20]} g6 {[%emt 0:00:22]} 4. Bg2 {[%emt 0:00:16]} Bg7 {[%emt 0:00:07]} 5. Nc3 {[%emt 0:00:45]} d6 {[%emt 0:00:31]} 6. O-O {[%emt 0:00:58]} e5 {[%emt 0:00:24]} 7. a3 {[%emt 0:05:10]} Nge7 {[%emt 0:06:20]} 8. Rb1 {[%emt 0:03:47]} a5 {[%emt 0:01:50]} 9. d3 {[%emt 0:02:05]} O-O {[%emt 0:00:40]} 10. Bd2 {[%emt 0:04:00]} f5 {[%emt 0:01:03][%cal Bf7f5,Bf5f4][%mdl 32]} 11. Ne1 {[%emt 0:15:06]} f4 {[%emt 0:06:31]} 12. Nd5 {[%emt 0:23:15]} g5 {[%emt 0:04:52]} 13. b4 {[%emt 0:01:45] White is slightly better.} (13. e3 {is interesting.} Nxd5 14. Bxd5+ Kh8 15. exf4 gxf4 16. gxf4 Bh3 17. Ng2) 13... axb4 {[%emt 0:06:14]} 14. axb4 {[%emt 0:00:05]} cxb4 {[%emt 0:02:05]} (14... Nxd5 {feels hotter.} 15. Bxd5+ Kh8 16. bxc5 dxc5 17. Nf3 g4) 15. Bxb4 {[%emt 0:05:36]} Nxb4 {[%emt 0:00:57]} 16. Nxe7+ {[%emt 0:06:05]} Qxe7 {[%emt 0:00:07]} 17. Rxb4 {[%emt 0:00:03]} h5 {[%emt 0:05:16]} 18. Qb3 {[%emt 0:01:27]} Ra7 {[%emt 0:01:07]} 19. c5+ {[%emt 0:03:37]} Kh8 {[%emt 0:00:24]} 20. cxd6 {[%emt 0:00:19]} Qxd6 {[%emt 0:00:02]} 21. Nf3 {[%emt 0:01:35][%cal Be1f3,Bf3d2,Bd2e4,Be4d6][%mdl 32]} ({But not} 21. Bxb7 Be6 22. Qb1 Ba2 $11) 21... Qe7 {[%emt 0:01:50]} 22. Rb6 {[%emt 0:04:16]} Bf6 {[%emt 0:16:54]} (22... fxg3 $14 23. hxg3 h4) 23. Nd2 $16 {[%emt 0:02:11] White has more active pieces.} g4 {[%emt 0:03:40]} 24. Ne4 {[%emt 0:02:58] Hoping for Nxf6.} Bg7 {[%emt 0:00:45]} 25. Nd6 {[%emt 0:03:04]} Bd7 {[%emt 0:05:09]} (25... Be6 $16 {was necessary.} 26. Bd5 Ra6 27. Rxa6 (27. Bxe6 Rxb6 28. Qxb6 Qxe6 $16) 27... bxa6) 26. Bd5 $18 {[%emt 0:02:42] Nf7+ is the strong threat.} ({Weaker is} 26. Nxb7 f3 27. exf3 gxf3 $11) 26... Bf6 {[%emt 0:06:23]} 27. Ne4 {[%emt 0:01:22]} h4 {[%emt 0:00:59]} 28. Nxf6 {[%emt 0:00:44]} Rxf6 {[%emt 0:00:05]} 29. Rxb7 {[%emt 0:02:21]} Rxb7 {[%emt 0:03:04]} 30. Qxb7 {[%emt 0:00:04]} fxg3 {[%emt 0:00:49]} 31. hxg3 {[%emt 0:00:05]} hxg3 {[%emt 0:00:27]} 32. fxg3 {[%emt 0:00:05] [#] White wants to mate with Rxf6.} Qc5+ {[%emt 0:01:04]} (32... Rxf1+ $16 33. Kxf1 Kg7) 33. Kg2 {[%emt 0:00:08]} Rxf1 {[%emt 0:00:12]} 34. Kxf1 {[%emt 0:00:06] Threatening mate with Qb8+.} Bc8 $2 {[%emt 0:03:07]} (34... Qd6 $18 35. Qa8+ Kh7 36. Qg8+ Kh6) 35. Qf7 {[%emt 0:00:34] Weighted Error Value: White=0.07 (flawless) /Black=0.52.  Mistake:       	---       	Black=4      Inaccurate:     	White=1     	Black=2      OK:         	White=7     	Black=4      Best:        	White=4     	---} 1-0